{"text_format":"3","workbook":"xlsx","n_sheets":1,"sheets":["Calendar"],"not_rendered":{"defined_names":79},"read":"whole","date_system":"1900"}

{"sheet":"Calendar","index":0,"n_rows":167,"n_cols":8,"rows_kept":167,"merged":[[0,2,0,4],[12,3,12,7],[13,3,13,7],[14,2,14,4],[26,3,26,7],[27,3,27,7],[28,2,28,4],[40,3,40,7],[41,3,41,7],[42,2,42,4],[54,3,54,7],[55,3,55,7],[56,2,56,4],[68,3,68,7],[69,3,69,7],[70,2,70,4],[82,3,82,7],[83,3,83,7],[84,2,84,4],[96,3,96,7],[97,3,97,7],[98,2,98,4],[110,3,110,7],[111,3,111,7],[112,2,112,4],[124,3,124,7],[125,3,125,7],[126,2,126,4],[138,3,138,7],[139,3,139,7],[140,2,140,4],[152,3,152,7],[153,3,153,7],[154,2,154,4],[166,3,166,7],[167,3,167,7]]}
[null,{"$f":"YEAR(TODAY())","v":2021},"August"]
[null,"MONDAY",{"$f":"UPPER(TEXT(C3,\"dddd\"))","v":"TUESDAY"},{"$f":"UPPER(TEXT(D3,\"dddd\"))","v":"WEDNESDAY"},"THURSDAY","FRIDAY","SATURDAY","SUNDAY"]
[null,{"$f":"Days+1+DATE(Calendar1Year,Calendar1MonthOption,1)-WEEKDAY(DATE(Calendar1Year,Calendar1MonthOption,1),WeekdayOption)","v":"2021-07-26"},"2021-07-27","2021-07-28","2021-07-29","2021-07-30","2021-07-31","2021-08-01"]
[]
[null,{"$f":"Days+8+DATE(Calendar1Year,Calendar1MonthOption,1)-WEEKDAY(DATE(Calendar1Year,Calendar1MonthOption,1),WeekdayOption)","v":"2021-08-02"},"2021-08-03","2021-08-04","2021-08-05","2021-08-06","2021-08-07","2021-08-08"]
[]
[null,{"$f":"Days+15+DATE(Calendar1Year,Calendar1MonthOption,1)-WEEKDAY(DATE(Calendar1Year,Calendar1MonthOption,1),WeekdayOption)","v":"2021-08-09"},"2021-08-10","2021-08-11","2021-08-12","2021-08-13","2021-08-14","2021-08-15"]
[]
[null,{"$f":"Days+22+DATE(Calendar1Year,Calendar1MonthOption,1)-WEEKDAY(DATE(Calendar1Year,Calendar1MonthOption,1),WeekdayOption)","v":"2021-08-16"},"2021-08-17","2021-08-18","2021-08-19","2021-08-20","2021-08-21","2021-08-22"]
[]
[null,{"$f":"Days+29+DATE(Calendar1Year,Calendar1MonthOption,1)-WEEKDAY(DATE(Calendar1Year,Calendar1MonthOption,1),WeekdayOption)","v":"2021-08-23"},"2021-08-24","2021-08-25","2021-08-26","2021-08-27","2021-08-28","2021-08-29"]
[]
[null,{"$f":"Days+36+DATE(Calendar1Year,Calendar1MonthOption,1)-WEEKDAY(DATE(Calendar1Year,Calendar1MonthOption,1),WeekdayOption)","v":"2021-08-30"},"2021-08-31","Notes:"]
[]
[null,{"$f":"YEAR(DATE(Calendar1Year,Calendar1MonthOption+1,1))","v":2021},{"$f":"TEXT(DATE(Calendar1Year,Calendar1MonthOption+1,1),\"mmmm\")","v":"September"}]
[null,{"$f":"UPPER(TEXT(B17,\"dddd\"))","v":"MONDAY"},{"$f":"UPPER(TEXT(C17,\"dddd\"))","v":"TUESDAY"},"WEDNESDAY","THURSDAY","FRIDAY","SATURDAY","SUNDAY"]
[null,{"$f":"Days+1+DATE(Calendar2Year,Calendar2MonthOption,1)-WEEKDAY(DATE(Calendar2Year,Calendar2MonthOption,1),WeekdayOption)","v":"2021-08-30"},"2021-08-31","2021-09-01","2021-09-02","2021-09-03","2021-09-04","2021-09-05"]
[]
[null,{"$f":"Days+8+DATE(Calendar2Year,Calendar2MonthOption,1)-WEEKDAY(DATE(Calendar2Year,Calendar2MonthOption,1),WeekdayOption)","v":"2021-09-06"},"2021-09-07","2021-09-08","2021-09-09","2021-09-10","2021-09-11","2021-09-12"]
[null,null,"First Day of School for Kids","Lesson 1: Needs and Wants","Lesson 2: Opportunity Cost","Activity:  Opportunity Cost"]
[null,{"$f":"Days+15+DATE(Calendar2Year,Calendar2MonthOption,1)-WEEKDAY(DATE(Calendar2Year,Calendar2MonthOption,1),WeekdayOption)","v":"2021-09-13"},"2021-09-14","2021-09-15","2021-09-16","2021-09-17","2021-09-18","2021-09-19"]
[null,"Activity:  The Impact of Daily Decision Making","Activity:  Creative Debating",null,"Lesson 3: Comparision Shopping","Activity:  Bargin Shopping"]
[null,{"$f":"Days+22+DATE(Calendar2Year,Calendar2MonthOption,1)-WEEKDAY(DATE(Calendar2Year,Calendar2MonthOption,1),WeekdayOption)","v":"2021-09-20"},"2021-09-21","2021-09-22","2021-09-23","2021-09-24","2021-09-25","2021-09-26"]
[null,"Activity: Computing Discounts","Activity: Double Discounts","Activity: Food for Thought"]
[null,{"$f":"Days+29+DATE(Calendar2Year,Calendar2MonthOption,1)-WEEKDAY(DATE(Calendar2Year,Calendar2MonthOption,1),WeekdayOption)","v":"2021-09-27"},"2021-09-28","2021-09-29","2021-09-30","2021-10-01","2021-10-02","2021-10-03"]
[null,"Lesson 4:  Making Change","Lesson 5:  Rounding and adding","Lesson 6:  Can I Have a Job?","Activity: Disc & Career Match"]
[null,{"$f":"Days+36+DATE(Calendar2Year,Calendar2MonthOption,1)-WEEKDAY(DATE(Calendar2Year,Calendar2MonthOption,1),WeekdayOption)","v":"2021-10-04"},"2021-10-05","Notes:"]
[]
[null,{"$f":"YEAR(DATE(Calendar2Year,Calendar2MonthOption+1,1))","v":2021},{"$f":"TEXT(DATE(Calendar2Year,Calendar2MonthOption+1,1),\"mmmm\")","v":"October"}]
[null,{"$f":"UPPER(TEXT(B31,\"dddd\"))","v":"MONDAY"},{"$f":"UPPER(TEXT(C31,\"dddd\"))","v":"TUESDAY"},{"$f":"UPPER(TEXT(D31,\"dddd\"))","v":"WEDNESDAY"},{"$f":"UPPER(TEXT(E31,\"dddd\"))","v":"THURSDAY"},{"$f":"UPPER(TEXT(F31,\"dddd\"))","v":"FRIDAY"},{"$f":"UPPER(TEXT(G31,\"dddd\"))","v":"SATURDAY"},{"$f":"UPPER(TEXT(H31,\"dddd\"))","v":"SUNDAY"}]
[null,{"$f":"Days+1+DATE(Calendar3Year,Calendar3MonthOption,1)-WEEKDAY(DATE(Calendar3Year,Calendar3MonthOption,1),WeekdayOption)","v":"2021-09-27"},"2021-09-28","2021-09-29","2021-09-30","2021-10-01","2021-10-02","2021-10-03"]
[{"$nulls":5},"Activity: Employee Onboarding "]
[null,{"$f":"Days+8+DATE(Calendar3Year,Calendar3MonthOption,1)-WEEKDAY(DATE(Calendar3Year,Calendar3MonthOption,1),WeekdayOption)","v":"2021-10-04"},"2021-10-05","2021-10-06","2021-10-07","2021-10-08","2021-10-09","2021-10-10"]
[null,"Activity:  Interview Practice",null,"Activity:  Researching Careers"]
[null,{"$f":"Days+15+DATE(Calendar3Year,Calendar3MonthOption,1)-WEEKDAY(DATE(Calendar3Year,Calendar3MonthOption,1),WeekdayOption)","v":"2021-10-11"},"2021-10-12","2021-10-13","2021-10-14","2021-10-15","2021-10-16","2021-10-17"]
[null,"Columbus Day       No School","Lesson 7:  Paychecks",null,"Activity:  Filing your Taxes"]
[null,{"$f":"Days+22+DATE(Calendar3Year,Calendar3MonthOption,1)-WEEKDAY(DATE(Calendar3Year,Calendar3MonthOption,1),WeekdayOption)","v":"2021-10-18"},"2021-10-19","2021-10-20","2021-10-21","2021-10-22","2021-10-23","2021-10-24"]
[null,"Activity:  Reading a  Pay Stub",null,"Lesson 8:  Earning to Spend",null,"Activity:  The Students Budget"]
[null,{"$f":"Days+29+DATE(Calendar3Year,Calendar3MonthOption,1)-WEEKDAY(DATE(Calendar3Year,Calendar3MonthOption,1),WeekdayOption)","v":"2021-10-25"},"2021-10-26","2021-10-27","2021-10-28","2021-10-29","2021-10-30","2021-10-31"]
[null,"Activity: Budgeting for Life After High School",null,"Activity: Cost of Living Calulator",null,"Lesson 9:  Budgets"]
[null,{"$f":"Days+36+DATE(Calendar3Year,Calendar3MonthOption,1)-WEEKDAY(DATE(Calendar3Year,Calendar3MonthOption,1),WeekdayOption)","v":"2021-11-01"},"2021-11-02","Notes:"]
[]
[null,{"$f":"YEAR(DATE(Calendar3Year,Calendar3MonthOption+1,1))","v":2021},{"$f":"TEXT(DATE(Calendar3Year,Calendar3MonthOption+1,1),\"mmmm\")","v":"November"}]
[null,{"$f":"UPPER(TEXT(B45,\"dddd\"))","v":"MONDAY"},{"$f":"UPPER(TEXT(C45,\"dddd\"))","v":"TUESDAY"},{"$f":"UPPER(TEXT(D45,\"dddd\"))","v":"WEDNESDAY"},{"$f":"UPPER(TEXT(E45,\"dddd\"))","v":"THURSDAY"},{"$f":"UPPER(TEXT(F45,\"dddd\"))","v":"FRIDAY"},{"$f":"UPPER(TEXT(G45,\"dddd\"))","v":"SATURDAY"},{"$f":"UPPER(TEXT(H45,\"dddd\"))","v":"SUNDAY"}]
[null,{"$f":"Days+1+DATE(Calendar4Year,Calendar4MonthOption,1)-WEEKDAY(DATE(Calendar4Year,Calendar4MonthOption,1),WeekdayOption)","v":"2021-11-01"},"2021-11-02","2021-11-03","2021-11-04","2021-11-05","2021-11-06","2021-11-07"]
[null,"Activity: Parent Interview Budgeting",null,"Lesson 10:  Cash Flow","Activity: Family Reality Check"]
[null,{"$f":"Days+8+DATE(Calendar4Year,Calendar4MonthOption,1)-WEEKDAY(DATE(Calendar4Year,Calendar4MonthOption,1),WeekdayOption)","v":"2021-11-08"},"2021-11-09","2021-11-10","2021-11-11","2021-11-12","2021-11-13","2021-11-14"]
[null,"Lesson 11:  Balancing a Check Book","Activity: Balancing Your Checking Account",null,"Veterns Day           No School","Activity:  How to Manage your Checking Account"]
[null,{"$f":"Days+15+DATE(Calendar4Year,Calendar4MonthOption,1)-WEEKDAY(DATE(Calendar4Year,Calendar4MonthOption,1),WeekdayOption)","v":"2021-11-15"},"2021-11-16","2021-11-17","2021-11-18","2021-11-19","2021-11-20","2021-11-21"]
[null,"Lesson 12:  Savings","Activity: The Rate of Return","Activity: Savings A way to Build","Activity: Funding A 401k AND Roth IRA "]
[null,{"$f":"Days+22+DATE(Calendar4Year,Calendar4MonthOption,1)-WEEKDAY(DATE(Calendar4Year,Calendar4MonthOption,1),WeekdayOption)","v":"2021-11-22"},"2021-11-23","2021-11-24","2021-11-25","2021-11-26","2021-11-27","2021-11-28"]
[null,"Activity:  Monthly Retirement Planning",null,"NO SCHOOL","NO SCHOOL  Thanksgiving Day","NO SCHOOL"]
[null,{"$f":"Days+29+DATE(Calendar4Year,Calendar4MonthOption,1)-WEEKDAY(DATE(Calendar4Year,Calendar4MonthOption,1),WeekdayOption)","v":"2021-11-29"},"2021-11-30","2021-12-01","2021-12-02","2021-12-03","2021-12-04","2021-12-05"]
[null,"Activity: My Roth IRA"]
[null,{"$f":"Days+36+DATE(Calendar4Year,Calendar4MonthOption,1)-WEEKDAY(DATE(Calendar4Year,Calendar4MonthOption,1),WeekdayOption)","v":"2021-12-06"},"2021-12-07","Notes:"]
[]
[null,{"$f":"YEAR(DATE(Calendar4Year,Calendar4MonthOption+1,1))","v":2021},{"$f":"TEXT(DATE(Calendar4Year,Calendar4MonthOption+1,1),\"mmmm\")","v":"December"}]
[null,{"$f":"UPPER(TEXT(B59,\"dddd\"))","v":"MONDAY"},{"$f":"UPPER(TEXT(C59,\"dddd\"))","v":"TUESDAY"},{"$f":"UPPER(TEXT(D59,\"dddd\"))","v":"WEDNESDAY"},{"$f":"UPPER(TEXT(E59,\"dddd\"))","v":"THURSDAY"},{"$f":"UPPER(TEXT(F59,\"dddd\"))","v":"FRIDAY"},{"$f":"UPPER(TEXT(G59,\"dddd\"))","v":"SATURDAY"},{"$f":"UPPER(TEXT(H59,\"dddd\"))","v":"SUNDAY"}]
[null,{"$f":"Days+1+DATE(Calendar5Year,Calendar5MonthOption,1)-WEEKDAY(DATE(Calendar5Year,Calendar5MonthOption,1),WeekdayOption)","v":"2021-11-29"},"2021-11-30","2021-12-01","2021-12-02","2021-12-03","2021-12-04","2021-12-05"]
[{"$nulls":3},"Activity:  Reading a Prospectus",null,"Activity: Rule of 72"]
[null,{"$f":"Days+8+DATE(Calendar5Year,Calendar5MonthOption,1)-WEEKDAY(DATE(Calendar5Year,Calendar5MonthOption,1),WeekdayOption)","v":"2021-12-06"},"2021-12-07","2021-12-08","2021-12-09","2021-12-10","2021-12-11","2021-12-12"]
[null,"Lesson 13: Taxation",null,"Lesson 14:     Sales Tax",null,"Lesson 15: APR and Monthly Rates"]
[null,{"$f":"Days+15+DATE(Calendar5Year,Calendar5MonthOption,1)-WEEKDAY(DATE(Calendar5Year,Calendar5MonthOption,1),WeekdayOption)","v":"2021-12-13"},"2021-12-14","2021-12-15","2021-12-16","2021-12-17","2021-12-18","2021-12-19"]
[null,"Activity: Hidden Cost of Credit",null,"Activity: Making the Minimum ",null,"Activity: Realities of Cash Advance"]
[null,{"$f":"Days+22+DATE(Calendar5Year,Calendar5MonthOption,1)-WEEKDAY(DATE(Calendar5Year,Calendar5MonthOption,1),WeekdayOption)","v":"2021-12-20"},"2021-12-21","2021-12-22","2021-12-23","2021-12-24","2021-12-25","2021-12-26"]
[null,"Activity: Rent to Own","Activity: 0 For 24 Months Nothing Down"]
[null,{"$f":"Days+29+DATE(Calendar5Year,Calendar5MonthOption,1)-WEEKDAY(DATE(Calendar5Year,Calendar5MonthOption,1),WeekdayOption)","v":"2021-12-27"},"2021-12-28","2021-12-29","2021-12-30","2021-12-31","2022-01-01","2022-01-02"]
[]
[null,{"$f":"Days+36+DATE(Calendar5Year,Calendar5MonthOption,1)-WEEKDAY(DATE(Calendar5Year,Calendar5MonthOption,1),WeekdayOption)","v":"2022-01-03"},"2022-01-04","Notes:"]
[]
[null,{"$f":"YEAR(DATE(Calendar5Year,Calendar5MonthOption+1,1))","v":2022},{"$f":"TEXT(DATE(Calendar5Year,Calendar5MonthOption+1,1),\"mmmm\")","v":"January"}]
[null,{"$f":"UPPER(TEXT(B73,\"dddd\"))","v":"MONDAY"},{"$f":"UPPER(TEXT(C73,\"dddd\"))","v":"TUESDAY"},{"$f":"UPPER(TEXT(D73,\"dddd\"))","v":"WEDNESDAY"},{"$f":"UPPER(TEXT(E73,\"dddd\"))","v":"THURSDAY"},{"$f":"UPPER(TEXT(F73,\"dddd\"))","v":"FRIDAY"},{"$f":"UPPER(TEXT(G73,\"dddd\"))","v":"SATURDAY"},{"$f":"UPPER(TEXT(H73,\"dddd\"))","v":"SUNDAY"}]
[null,{"$f":"Days+1+DATE(Calendar6Year,Calendar6MonthOption,1)-WEEKDAY(DATE(Calendar6Year,Calendar6MonthOption,1),WeekdayOption)","v":"2021-12-27"},"2021-12-28","2021-12-29","2021-12-30","2021-12-31","2022-01-01","2022-01-02"]
[]
[null,{"$f":"Days+8+DATE(Calendar6Year,Calendar6MonthOption,1)-WEEKDAY(DATE(Calendar6Year,Calendar6MonthOption,1),WeekdayOption)","v":"2022-01-03"},"2022-01-04","2022-01-05","2022-01-06","2022-01-07","2022-01-08","2022-01-09"]
[null,"Lesson 16:  Credit Score","Activity: History of Credit in America",null,"Activity:  Debunnking the Credit Myth","Activity: The Debit Snowball"]
[null,{"$f":"Days+15+DATE(Calendar6Year,Calendar6MonthOption,1)-WEEKDAY(DATE(Calendar6Year,Calendar6MonthOption,1),WeekdayOption)","v":"2022-01-10"},"2022-01-11","2022-01-12","2022-01-13","2022-01-14","2022-01-15","2022-01-16"]
[null,"Lesson 17:  Exchange Rates",null,"Lesson 18: Inflation ",null,"Activity:  The impact of inflation"]
[null,{"$f":"Days+22+DATE(Calendar6Year,Calendar6MonthOption,1)-WEEKDAY(DATE(Calendar6Year,Calendar6MonthOption,1),WeekdayOption)","v":"2022-01-17"},"2022-01-18","2022-01-19","2022-01-20","2022-01-21","2022-01-22","2022-01-23"]
[null,"Martin Luther King Day  -  No School","Lesson 19:  Knuckles and Months","Lesson 20: Car Buying ",null,"Activity:  True Cost of Ownership "]
[null,{"$f":"Days+29+DATE(Calendar6Year,Calendar6MonthOption,1)-WEEKDAY(DATE(Calendar6Year,Calendar6MonthOption,1),WeekdayOption)","v":"2022-01-24"},"2022-01-25","2022-01-26","2022-01-27","2022-01-28","2022-01-29","2022-01-30"]
[null,"Activity:  Auto Liability Limits",null,"Lesson 21: Avoiding Scams"]
[null,{"$f":"Days+36+DATE(Calendar6Year,Calendar6MonthOption,1)-WEEKDAY(DATE(Calendar6Year,Calendar6MonthOption,1),WeekdayOption)","v":"2022-01-31"},"2022-02-01","Notes:"]
[null,"Superindendent's Conference Day"]
[null,{"$f":"YEAR(DATE(Calendar6Year,Calendar6MonthOption+1,1))","v":2022},{"$f":"TEXT(DATE(Calendar6Year,Calendar6MonthOption+1,1),\"mmmm\")","v":"February"}]
[null,{"$f":"UPPER(TEXT(B87,\"dddd\"))","v":"MONDAY"},{"$f":"UPPER(TEXT(C87,\"dddd\"))","v":"TUESDAY"},{"$f":"UPPER(TEXT(D87,\"dddd\"))","v":"WEDNESDAY"},{"$f":"UPPER(TEXT(E87,\"dddd\"))","v":"THURSDAY"},{"$f":"UPPER(TEXT(F87,\"dddd\"))","v":"FRIDAY"},{"$f":"UPPER(TEXT(G87,\"dddd\"))","v":"SATURDAY"},{"$f":"UPPER(TEXT(H87,\"dddd\"))","v":"SUNDAY"}]
[null,{"$f":"Days+1+DATE(Calendar7Year,Calendar7MonthOption,1)-WEEKDAY(DATE(Calendar7Year,Calendar7MonthOption,1),WeekdayOption)","v":"2022-01-31"},"2022-02-01","2022-02-02","2022-02-03","2022-02-04","2022-02-05","2022-02-06"]
[null,null,"Lesson 22:  Activity Candy Bar Madness",null,"Lesson 23: Activity Game of Chance"]
[null,{"$f":"Days+8+DATE(Calendar7Year,Calendar7MonthOption,1)-WEEKDAY(DATE(Calendar7Year,Calendar7MonthOption,1),WeekdayOption)","v":"2022-02-07"},"2022-02-08","2022-02-09","2022-02-10","2022-02-11","2022-02-12","2022-02-13"]
[null,"Lesson 24:  Activity Calculating your Net Worth",null,"Lesson 25: Activity Health Plan Overview"]
[null,{"$f":"Days+15+DATE(Calendar7Year,Calendar7MonthOption,1)-WEEKDAY(DATE(Calendar7Year,Calendar7MonthOption,1),WeekdayOption)","v":"2022-02-14"},"2022-02-15","2022-02-16","2022-02-17","2022-02-18","2022-02-19","2022-02-20"]
[null,"Lesson 26: Activiity Understanding Renters Insurance",null,null,"Lesson 27: Activity Back Then"]
[null,{"$f":"Days+22+DATE(Calendar7Year,Calendar7MonthOption,1)-WEEKDAY(DATE(Calendar7Year,Calendar7MonthOption,1),WeekdayOption)","v":"2022-02-21"},"2022-02-22","2022-02-23","2022-02-24","2022-02-25","2022-02-26","2022-02-27"]
[null,"President's Day   No School","Lesson 28: Activity Roommates and Money"]
[null,{"$f":"Days+29+DATE(Calendar7Year,Calendar7MonthOption,1)-WEEKDAY(DATE(Calendar7Year,Calendar7MonthOption,1),WeekdayOption)","v":"2022-02-28"},"2022-03-01","2022-03-02","2022-03-03","2022-03-04","2022-03-05","2022-03-06"]
[]
[null,{"$f":"Days+36+DATE(Calendar7Year,Calendar7MonthOption,1)-WEEKDAY(DATE(Calendar7Year,Calendar7MonthOption,1),WeekdayOption)","v":"2022-03-07"},"2022-03-08","Notes:"]
[]
[null,{"$f":"YEAR(DATE(Calendar7Year,Calendar7MonthOption+1,1))","v":2022},{"$f":"TEXT(DATE(Calendar7Year,Calendar7MonthOption+1,1),\"mmmm\")","v":"March"}]
[null,{"$f":"UPPER(TEXT(B101,\"dddd\"))","v":"MONDAY"},{"$f":"UPPER(TEXT(C101,\"dddd\"))","v":"TUESDAY"},{"$f":"UPPER(TEXT(D101,\"dddd\"))","v":"WEDNESDAY"},{"$f":"UPPER(TEXT(E101,\"dddd\"))","v":"THURSDAY"},{"$f":"UPPER(TEXT(F101,\"dddd\"))","v":"FRIDAY"},{"$f":"UPPER(TEXT(G101,\"dddd\"))","v":"SATURDAY"},{"$f":"UPPER(TEXT(H101,\"dddd\"))","v":"SUNDAY"}]
[null,{"$f":"Days+1+DATE(Calendar8Year,Calendar8MonthOption,1)-WEEKDAY(DATE(Calendar8Year,Calendar8MonthOption,1),WeekdayOption)","v":"2022-02-28"},"2022-03-01","2022-03-02","2022-03-03","2022-03-04","2022-03-05","2022-03-06"]
[]
[null,{"$f":"Days+8+DATE(Calendar8Year,Calendar8MonthOption,1)-WEEKDAY(DATE(Calendar8Year,Calendar8MonthOption,1),WeekdayOption)","v":"2022-03-07"},"2022-03-08","2022-03-09","2022-03-10","2022-03-11","2022-03-12","2022-03-13"]
[]
[null,{"$f":"Days+15+DATE(Calendar8Year,Calendar8MonthOption,1)-WEEKDAY(DATE(Calendar8Year,Calendar8MonthOption,1),WeekdayOption)","v":"2022-03-14"},"2022-03-15","2022-03-16","2022-03-17","2022-03-18","2022-03-19","2022-03-20"]
[null,"Lesson 1: Add/Subtract Polynomials",null,"Lesson 2: Solve first degree Equations"]
[null,{"$f":"Days+22+DATE(Calendar8Year,Calendar8MonthOption,1)-WEEKDAY(DATE(Calendar8Year,Calendar8MonthOption,1),WeekdayOption)","v":"2022-03-21"},"2022-03-22","2022-03-23","2022-03-24","2022-03-25","2022-03-26","2022-03-27"]
[null,"Lesson 3: Multiply Polynomials",null,"Lesson 4:  Literal Equations"]
[null,{"$f":"Days+29+DATE(Calendar8Year,Calendar8MonthOption,1)-WEEKDAY(DATE(Calendar8Year,Calendar8MonthOption,1),WeekdayOption)","v":"2022-03-28"},"2022-03-29","2022-03-30","2022-03-31","2022-04-01","2022-04-02","2022-04-03"]
[null,"Lesson 1: Factor the GCF",null,"Lesson 2: Factoring Trinomial (a = 1)"]
[null,{"$f":"Days+36+DATE(Calendar8Year,Calendar8MonthOption,1)-WEEKDAY(DATE(Calendar8Year,Calendar8MonthOption,1),WeekdayOption)","v":"2022-04-04"},"2022-04-05","Notes:"]
[]
[null,{"$f":"YEAR(DATE(Calendar8Year,Calendar8MonthOption+1,1))","v":2022},{"$f":"TEXT(DATE(Calendar8Year,Calendar8MonthOption+1,1),\"mmmm\")","v":"April"}]
[null,{"$f":"UPPER(TEXT(B115,\"dddd\"))","v":"MONDAY"},{"$f":"UPPER(TEXT(C115,\"dddd\"))","v":"TUESDAY"},{"$f":"UPPER(TEXT(D115,\"dddd\"))","v":"WEDNESDAY"},{"$f":"UPPER(TEXT(E115,\"dddd\"))","v":"THURSDAY"},{"$f":"UPPER(TEXT(F115,\"dddd\"))","v":"FRIDAY"},{"$f":"UPPER(TEXT(G115,\"dddd\"))","v":"SATURDAY"},{"$f":"UPPER(TEXT(H115,\"dddd\"))","v":"SUNDAY"}]
[null,{"$f":"Days+1+DATE(Calendar9Year,Calendar9MonthOption,1)-WEEKDAY(DATE(Calendar9Year,Calendar9MonthOption,1),WeekdayOption)","v":"2022-03-28"},"2022-03-29","2022-03-30","2022-03-31","2022-04-01","2022-04-02","2022-04-03"]
[]
[null,{"$f":"Days+8+DATE(Calendar9Year,Calendar9MonthOption,1)-WEEKDAY(DATE(Calendar9Year,Calendar9MonthOption,1),WeekdayOption)","v":"2022-04-04"},"2022-04-05","2022-04-06","2022-04-07","2022-04-08","2022-04-09","2022-04-10"]
[null,"Lesson 3: Factor Trinomials (a ≠ 1)",null,"Lesson 4:  Difference of Perfect squares","Lesson 5: Factoring Completely"]
[null,{"$f":"Days+15+DATE(Calendar9Year,Calendar9MonthOption,1)-WEEKDAY(DATE(Calendar9Year,Calendar9MonthOption,1),WeekdayOption)","v":"2022-04-11"},"2022-04-12","2022-04-13","2022-04-14","2022-04-15","2022-04-16","2022-04-17"]
[]
[null,{"$f":"Days+22+DATE(Calendar9Year,Calendar9MonthOption,1)-WEEKDAY(DATE(Calendar9Year,Calendar9MonthOption,1),WeekdayOption)","v":"2022-04-18"},"2022-04-19","2022-04-20","2022-04-21","2022-04-22","2022-04-23","2022-04-24"]
[]
[null,{"$f":"Days+29+DATE(Calendar9Year,Calendar9MonthOption,1)-WEEKDAY(DATE(Calendar9Year,Calendar9MonthOption,1),WeekdayOption)","v":"2022-04-25"},"2022-04-26","2022-04-27","2022-04-28","2022-04-29","2022-04-30","2022-05-01"]
[null,"Lesson 1: Horizonal and Vertical Lines",null,"Lesson 2: Slope"]
[null,{"$f":"Days+36+DATE(Calendar9Year,Calendar9MonthOption,1)-WEEKDAY(DATE(Calendar9Year,Calendar9MonthOption,1),WeekdayOption)","v":"2022-05-02"},"2022-05-03","Notes:"]
[]
[null,{"$f":"YEAR(DATE(Calendar9Year,Calendar9MonthOption+1,1))","v":2022},{"$f":"TEXT(DATE(Calendar9Year,Calendar9MonthOption+1,1),\"mmmm\")","v":"May"}]
[null,{"$f":"UPPER(TEXT(B129,\"dddd\"))","v":"MONDAY"},{"$f":"UPPER(TEXT(C129,\"dddd\"))","v":"TUESDAY"},"WEDNESDAY","THURSDAY","FRIDAY","SATURDAY","SUNDAY"]
[null,{"$f":"Days+1+DATE(Calendar10Year,Calendar10MonthOption,1)-WEEKDAY(DATE(Calendar10Year,Calendar10MonthOption,1),WeekdayOption)","v":"2022-04-25"},"2022-04-26","2022-04-27","2022-04-28","2022-04-29","2022-04-30","2022-05-01"]
[]
[null,{"$f":"Days+8+DATE(Calendar10Year,Calendar10MonthOption,1)-WEEKDAY(DATE(Calendar10Year,Calendar10MonthOption,1),WeekdayOption)","v":"2022-05-02"},"2022-05-03","2022-05-04","2022-05-05","2022-05-06","2022-05-07","2022-05-08"]
[null,"Lesson 3: Parallel & Perpendicular Slopes",null,"Lesson 4:Graphing Linear Equations",null,"Lesson 5:  Graphing Inequalities"]
[null,{"$f":"Days+15+DATE(Calendar10Year,Calendar10MonthOption,1)-WEEKDAY(DATE(Calendar10Year,Calendar10MonthOption,1),WeekdayOption)","v":"2022-05-09"},"2022-05-10","2022-05-11","2022-05-12","2022-05-13","2022-05-14","2022-05-15"]
[null,"Scientific Notation",{"$nulls":3},"Radicals: Lesson 1   Simplify"]
[null,{"$f":"Days+22+DATE(Calendar10Year,Calendar10MonthOption,1)-WEEKDAY(DATE(Calendar10Year,Calendar10MonthOption,1),WeekdayOption)","v":"2022-05-16"},"2022-05-17","2022-05-18","2022-05-19","2022-05-20","2022-05-21","2022-05-22"]
[null,"Lesson 2: Multiply Radicals",null,null,"Lesson 3: Divide Radicals"]
[null,{"$f":"Days+29+DATE(Calendar10Year,Calendar10MonthOption,1)-WEEKDAY(DATE(Calendar10Year,Calendar10MonthOption,1),WeekdayOption)","v":"2022-05-23"},"2022-05-24","2022-05-25","2022-05-26","2022-05-27","2022-05-28","2022-05-29"]
[null,null,"Algebraic Fractions:         Lesson 1  Simplifying",null,"Lesson 2:  Adding and Subtracting Algebraic Fractions with Common Demoninator "]
[null,{"$f":"Days+36+DATE(Calendar10Year,Calendar10MonthOption,1)-WEEKDAY(DATE(Calendar10Year,Calendar10MonthOption,1),WeekdayOption)","v":"2022-05-30"},"2022-05-31","Notes:"]
[null,"Memorial Day      No School"]
[null,{"$f":"YEAR(DATE(Calendar10Year,Calendar10MonthOption+1,1))","v":2022},{"$f":"TEXT(DATE(Calendar10Year,Calendar10MonthOption+1,1),\"mmmm\")","v":"June"}]
[null,{"$f":"UPPER(TEXT(B143,\"dddd\"))","v":"MONDAY"},{"$f":"UPPER(TEXT(C143,\"dddd\"))","v":"TUESDAY"},"WEDNESDAY","THURSDAY","FRIDAY","SATURDAY","SUNDAY"]
[null,{"$f":"Days+1+DATE(Calendar11Year,Calendar11MonthOption,1)-WEEKDAY(DATE(Calendar11Year,Calendar11MonthOption,1),WeekdayOption)","v":"2022-05-30"},"2022-05-31","2022-06-01","2022-06-02","2022-06-03","2022-06-04","2022-06-05"]
[]
[null,{"$f":"Days+8+DATE(Calendar11Year,Calendar11MonthOption,1)-WEEKDAY(DATE(Calendar11Year,Calendar11MonthOption,1),WeekdayOption)","v":"2022-06-06"},"2022-06-07","2022-06-08","2022-06-09","2022-06-10","2022-06-11","2022-06-12"]
[]
[null,{"$f":"Days+15+DATE(Calendar11Year,Calendar11MonthOption,1)-WEEKDAY(DATE(Calendar11Year,Calendar11MonthOption,1),WeekdayOption)","v":"2022-06-13"},"2022-06-14","2022-06-15","2022-06-16","2022-06-17","2022-06-18","2022-06-19"]
[]
[null,{"$f":"Days+22+DATE(Calendar11Year,Calendar11MonthOption,1)-WEEKDAY(DATE(Calendar11Year,Calendar11MonthOption,1),WeekdayOption)","v":"2022-06-20"},"2022-06-21","2022-06-22","2022-06-23","2022-06-24","2022-06-25","2022-06-26"]
[]
[null,{"$f":"Days+29+DATE(Calendar11Year,Calendar11MonthOption,1)-WEEKDAY(DATE(Calendar11Year,Calendar11MonthOption,1),WeekdayOption)","v":"2022-06-27"},"2022-06-28","2022-06-29","2022-06-30","2022-07-01","2022-07-02","2022-07-03"]
[]
[null,{"$f":"Days+36+DATE(Calendar11Year,Calendar11MonthOption,1)-WEEKDAY(DATE(Calendar11Year,Calendar11MonthOption,1),WeekdayOption)","v":"2022-07-04"},"2022-07-05","Notes:"]
[]
[null,{"$f":"YEAR(DATE(Calendar11Year,Calendar11MonthOption+1,1))","v":2022},{"$f":"TEXT(DATE(Calendar11Year,Calendar11MonthOption+1,1),\"mmmm\")","v":"July"}]
[null,{"$f":"UPPER(TEXT(B157,\"dddd\"))","v":"MONDAY"},{"$f":"UPPER(TEXT(C157,\"dddd\"))","v":"TUESDAY"},"WEDNESDAY","THURSDAY","FRIDAY","SATURDAY","SUNDAY"]
[null,{"$f":"Days+1+DATE(Calendar12Year,Calendar12MonthOption,1)-WEEKDAY(DATE(Calendar12Year,Calendar12MonthOption,1),WeekdayOption)","v":"2022-06-27"},"2022-06-28","2022-06-29","2022-06-30","2022-07-01","2022-07-02","2022-07-03"]
[]
[null,{"$f":"Days+8+DATE(Calendar12Year,Calendar12MonthOption,1)-WEEKDAY(DATE(Calendar12Year,Calendar12MonthOption,1),WeekdayOption)","v":"2022-07-04"},"2022-07-05","2022-07-06","2022-07-07","2022-07-08","2022-07-09","2022-07-10"]
[]
[null,{"$f":"Days+15+DATE(Calendar12Year,Calendar12MonthOption,1)-WEEKDAY(DATE(Calendar12Year,Calendar12MonthOption,1),WeekdayOption)","v":"2022-07-11"},"2022-07-12","2022-07-13","2022-07-14","2022-07-15","2022-07-16","2022-07-17"]
[]
[null,{"$f":"Days+22+DATE(Calendar12Year,Calendar12MonthOption,1)-WEEKDAY(DATE(Calendar12Year,Calendar12MonthOption,1),WeekdayOption)","v":"2022-07-18"},"2022-07-19","2022-07-20","2022-07-21","2022-07-22","2022-07-23","2022-07-24"]
[]
[null,{"$f":"Days+29+DATE(Calendar12Year,Calendar12MonthOption,1)-WEEKDAY(DATE(Calendar12Year,Calendar12MonthOption,1),WeekdayOption)","v":"2022-07-25"},"2022-07-26","2022-07-27","2022-07-28","2022-07-29","2022-07-30","2022-07-31"]
[]
[null,{"$f":"Days+36+DATE(Calendar12Year,Calendar12MonthOption,1)-WEEKDAY(DATE(Calendar12Year,Calendar12MonthOption,1),WeekdayOption)","v":"2022-08-01"},"2022-08-02","Notes:"]